bitfinex-derivatives/quotes_BTCF0:USTF0_20260314
["timestamp","ask_amount","ask_price","bid_price","bid_amount"]
[1773492193704,0.0014,70708.0,70685.0,0.03126971]
[1773492194118,0.042425,70702.0,70688.0,0.03126971]
[1773492195628,0.042425,70702.0,70689.0,0.03126971]
[1773492195823,0.042425,70702.0,70691.0,0.03126971]
[1773492196922,0.042424,70704.0,70691.0,0.03126971]
[1773492197225,0.042424,70703.0,70691.0,0.03126971]
[1773492198019,0.042424,70704.0,70692.0,0.03126971]
[1773492198520,0.0014,70706.0,70692.0,0.03126971]
[1773492198521,0.043823,70706.0,70693.0,0.03126971]
[1773492199121,0.042423,70706.0,70693.0,0.03126971]
[1773492200428,0.042423,70706.0,70693.0,0.04025971]
[1773492200628,0.042424,70704.0,70694.0,0.03126971]
[1773492205124,0.042423,70706.0,70694.0,0.03126971]
[1773492205520,0.042424,70704.0,70694.0,0.03126971]
[1773492210641,0.0014,70709.0,70694.0,0.03126971]
[1773492211133,0.07389743,70710.0,70694.0,0.03126971]
[1773492211933,0.001,70709.0,70694.0,0.03126971]
[1773492212129,0.002,70709.0,70694.0,0.03126971]
[1773492212522,0.001,70709.0,70694.0,0.03126971]
[1773492212824,0.07589743,70710.0,70694.0,0.03126971]
[1773492213027,0.042424,70705.0,70694.0,0.03126971]
[1773492215537,0.042422,70707.0,70695.0,0.0728872]
[1773492215835,0.042423,70706.0,70696.0,0.0318592]
[1773492217032,0.042423,70705.0,70696.0,0.0318592]
[1773492219333,0.042423,70705.0,70696.0,0.0014]
[1773492223332,0.042424,70704.0,70696.0,0.0014]
[1773492224933,0.00898,70715.0,70697.0,0.0304592]
[1773492225131,0.00898,70715.0,70697.0,0.0728872]
[1773492225132,0.04242,70710.0,70697.0,0.0728872]
[1773492226425,0.04342,70710.0,70697.0,0.0728872]
[1773492226844,0.04442,70710.0,70697.0,0.0728872]
[1773492227541,0.042421,70709.0,70697.0,0.0728872]
[1773492228433,0.042419,70712.0,70698.0,0.0304592]
[1773492228632,0.04242,70710.0,70699.0,0.0304592]
[1773492228838,0.042421,70709.0,70699.0,0.0304592]
[1773492229943,0.0014,70714.0,70699.0,0.0304592]
[1773492230445,0.00898,70715.0,70699.0,0.0304592]
[1773492230638,0.0014,70714.0,70699.0,0.0304592]
[1773492231036,0.01038,70715.0,70699.0,0.0304592]
[1773492231239,0.04242,70710.0,70699.0,0.0304592]
[1773492238650,0.00898,70715.0,70700.0,0.02841635]
[1773492239846,0.00998,70715.0,70700.0,0.02841635]
[1773492240047,0.042418,70713.0,70701.0,0.042425]
[1773492240248,0.042418,70713.0,70702.0,0.02981635]
[1773492240550,0.042419,70712.0,70702.0,0.02981635]
[1773492244550,0.042418,70714.0,70702.0,0.02981635]
[1773492244752,0.0014,70718.0,70702.0,0.02981635]
[1773492246049,0.042419,70712.0,70702.0,0.02981635]
[1773492249656,0.0014,70718.0,70702.0,0.02981635]
[1773492250056,0.042418,70714.0,70702.0,0.07224035]
[1773492250252,0.042419,70713.0,70702.0,0.02981635]
[1773492255668,0.042417,70715.0,70702.0,0.07224035]
[1773492256366,0.042418,70714.0,70702.0,0.07224035]
[1773492257966,0.042418,70713.0,70702.0,0.02981635]
[1773492258565,0.042418,70713.0,70702.0,0.07224135]
[1773492259064,0.042418,70713.0,70703.0,0.02841635]
[1773492260973,0.0014,70719.0,70703.0,0.02841635]
[1773492262570,0.002,70719.0,70702.0,0.0014]
[1773492262770,0.0034,70719.0,70703.0,0.0268391]
[1773492263074,0.002,70719.0,70703.0,0.0268391]
[1773492263972,0.002,70719.0,70704.0,0.0268391]
[1773492263973,0.042416,70716.0,70704.0,0.0268391]
[1773492267280,0.042416,70716.0,70704.0,0.0692621]
[1773492267664,0.07527414,70720.0,70705.0,0.0268391]
[1773492268065,0.042416,70716.0,70705.0,0.0268391]
[1773492270995,0.042417,70715.0,70705.0,0.0268391]
[1773492273098,0.00898,70723.0,70710.0,0.0268391]
[1773492273291,0.00898,70723.0,70711.0,0.0014]
[1773492273492,0.0014,70728.0,70711.0,0.0014]
[1773492273995,0.042413,70722.0,70711.0,0.0014]
[1773492279305,0.0014,70727.0,70711.0,0.0014]
[1773492280006,0.042413,70722.0,70711.0,0.0014]
[1773492280204,0.042413,70722.0,70711.0,0.01038]
[1773492281102,0.07387414,70721.0,70697.0,0.25424104]
[1773492281300,0.04481,70727.0,70680.0,0.07387414]
[1773492281301,0.042423,70705.0,70692.0,0.04383]
[1773492281606,0.042422,70707.0,70694.0,0.042429]
[1773492281904,0.042421,70709.0,70695.0,0.042428]
[1773492282093,0.042421,70709.0,70696.0,0.0014]
[1773492282292,0.10311757,70710.0,70690.0,0.28108014]
[1773492282598,0.042421,70708.0,70694.0,0.042429]
[1773492282798,0.042422,70707.0,70694.0,0.043429]
[1773492282999,0.00023321,70811.0,70695.0,0.0014]
[1773492283303,0.00023321,70811.0,70696.0,0.0014]
[1773492283304,0.042422,70707.0,70696.0,0.0014]
[1773492283505,0.042423,70706.0,70697.0,0.0014]
[1773492284102,0.042421,70708.0,70697.0,0.0014]
[1773492284304,0.042421,70708.0,70696.0,0.01038]
[1773492293017,0.042423,70706.0,70696.0,0.00898]
[1773492293519,0.042421,70708.0,70696.0,0.00898]
[1773492294905,0.0418423,70705.0,70686.0,0.0014]
[1773492295213,0.0014,70711.0,70682.0,0.042436]
[1773492295214,0.0418423,70698.0,70682.0,0.042436]
[1773492295405,0.042428,70697.0,70682.0,0.042436]
[1773492295608,0.0842703,70697.0,70684.0,0.042436]
[1773492296405,0.042432,70691.0,70683.0,0.00899]
[1773492296618,0.0014,70699.0,70663.0,0.04155324]
[1773492296809,0.0418423,70685.0,70669.0,0.0014]
[1773492298011,0.07387414,70693.0,70669.0,0.0014]
[1773492298012,0.0418423,70689.0,70669.0,0.0014]
[1773492298315,0.042438,70681.0,70669.0,0.04295324]
[1773492298719,0.0418423,70685.0,70669.0,0.0014]
[1773492299117,0.042437,70682.0,70669.0,0.0014]
[1773492300119,0.042436,70684.0,70669.0,0.043844]
[1773492300322,0.00899,70685.0,70669.0,0.0014]
[1773492301108,0.042437,70682.0,70669.0,0.0014]
[1773492301711,0.07387414,70700.0,70670.0,0.11542738]
[1773492302010,0.07387414,70700.0,70669.0,0.0014]
[1773492302011,0.0014,70704.0,70681.0,0.04155324]
[1773492302216,0.0418423,70720.0,70691.0,0.04155324]
[1773492302415,0.07387414,70730.0,70703.0,0.04155324]
[1773492302416,0.032417,70715.0,70703.0,0.04155324]
[1773492302819,0.042418,70714.0,70703.0,0.04155324]
[1773492303825,0.0014,70719.0,70703.0,0.04155324]
[1773492304914,0.0418423,70726.0,70703.0,0.04155324]
[1773492305115,0.042419,70712.0,70703.0,0.04155324]
[1773492309023,0.042417,70715.0,70703.0,0.04155324]
[1773492309433,0.042418,70714.0,70703.0,0.04155324]
[1773492310430,0.042419,70713.0,70703.0,0.04155324]
[1773492311232,0.042417,70716.0,70704.0,0.04226215]
[1773492311528,0.00898,70717.0,70709.0,0.04226215]
[1773492311830,0.042415,70719.0,70709.0,0.04366215]
[1773492312620,0.042415,70719.0,70709.0,0.05264215]
[1773492329833,0.042414,70720.0,70709.0,0.05264215]
[1773492330141,0.042413,70722.0,70709.0,0.09506215]
[1773492330342,0.042414,70721.0,70710.0,0.03659516]
[1773492338347,0.042414,70721.0,70709.0,0.0528]
[1773492339948,0.042414,70721.0,70710.0,0.04914879]
[1773492348866,0.0007069,70731.0,70710.0,0.04914879]
[1773492349068,0.0007069,70731.0,70714.0,0.04879253]
[1773492350071,0.0017069,70731.0,70714.0,0.04879253]
[1773492350271,0.0017069,70731.0,70729.0,0.042408]
[1773492350467,0.042398,70747.0,70730.0,0.0014]
[1773492350671,0.00848061,70740.0,70733.0,0.042406]
[1773492351268,0.042397,70749.0,70733.0,0.042406]
[1773492353463,0.042397,70749.0,70733.0,0.051386]
[1773492353869,0.00848061,70740.0,70733.0,0.051386]
[1773492354667,0.00898,70756.0,70742.0,0.0424]
[1773492354978,0.00898,70756.0,70743.0,0.0014]
[1773492355176,0.00848061,70750.0,70742.0,0.0424]
[1773492355364,0.05362067,70749.0,70733.0,0.00898]
[1773492355569,0.07386692,70743.0,70733.0,0.00898]
[1773492355977,0.00848061,70741.0,70733.0,0.00898]
[1773492356176,0.00848061,70741.0,70734.0,0.0014]
[1773492360475,0.05362067,70745.0,70734.0,0.0014]
[1773492360683,0.14759756,70744.0,70735.0,0.0014]
[1773492360879,0.20121823,70744.0,70735.0,0.0014]
[1773492361076,0.20121823,70744.0,70733.0,0.00898]
[1773492361279,0.00848061,70740.0,70736.0,0.0014]
[1773492361874,0.00848061,70740.0,70733.0,0.00898]
[1773492362074,0.00848061,70740.0,70734.0,0.0014]
[1773492364582,0.00848061,70740.0,70734.0,0.043805]
[1773492365787,0.05362067,70744.0,70734.0,0.043805]
[1773492366084,0.14759756,70743.0,70734.0,0.043805]
[1773492366275,0.14759756,70743.0,70734.0,0.0014]
[1773492366476,0.00848061,70739.0,70734.0,0.0014]
[1773492368882,0.00848061,70739.0,70734.0,0.043805]
[1773492370887,0.00848061,70739.0,70735.0,0.0014]
[1773492371586,6.1e-07,70739.0,70736.0,0.042404]
[1773492371974,0.05362067,70744.0,70736.0,0.042404]
[1773492372175,0.14759756,70743.0,70736.0,0.042404]
[1773492377073,0.14759756,70743.0,70737.0,0.042403]
[1773492378388,0.14759756,70743.0,70735.0,0.01038]
[1773492378684,0.20121823,70743.0,70736.0,0.0014]
[1773492379189,0.20121823,70743.0,70734.0,0.29553574]
[1773492379480,0.20121823,70743.0,70737.0,0.0014]
[1773492379690,0.05362067,70743.0,70737.0,0.0014]
[1773492380090,0.05362067,70743.0,70737.0,0.25453074]
[1773492384388,0.14759756,70742.0,70737.0,0.25453074]
[1773492385095,0.14759756,70742.0,70738.0,0.25313074]
[1773492398306,0.05112305,70747.0,70738.0,0.25313074]
[1773492398607,0.14759756,70746.0,70738.0,0.25313074]
[1773492400513,0.0424,70744.0,70729.0,0.31772441]
[1773492400817,0.0424,70744.0,70730.0,0.0014]
[1773492400818,0.05112305,70743.0,70730.0,0.0014]
[1773492401011,0.19872061,70743.0,70730.0,0.0014]
[1773492401316,0.19872061,70743.0,70727.0,0.31772441]
[1773492401618,0.19872061,70743.0,70731.0,0.0014]
[1773492401915,0.19872061,70743.0,70732.0,0.043806]
[1773492403311,0.19872061,70743.0,70732.0,0.0014]
[1773492405925,0.14759756,70743.0,70732.0,0.0014]
[1773492409713,0.0424,70744.0,70732.0,0.0014]
[1773492409921,0.14759756,70743.0,70732.0,0.0014]
[1773492415827,0.18999756,70743.0,70732.0,0.0014]
[1773492416730,0.24151627,70743.0,70732.0,0.0014]
[1773492423540,0.24151627,70743.0,70732.0,0.043806]
[1773492428342,0.09391871,70743.0,70732.0,0.043806]
[1773492430045,0.14759756,70742.0,70732.0,0.043806]
[1773492439545,0.09391871,70743.0,70732.0,0.043806]
[1773492439751,0.14759756,70742.0,70732.0,0.043806]
[1773492446054,0.14759756,70742.0,70732.0,0.0014]
[1773492456156,0.14759756,70742.0,70733.0,0.042406]
[1773492456362,0.14759756,70742.0,70732.0,0.0014]
[1773492458466,0.0424,70744.0,70732.0,0.0014]
[1773492458665,0.14759756,70743.0,70732.0,0.0014]
[1773492459361,0.24220341,70743.0,70732.0,0.0014]
[1773492467364,0.00898,70745.0,70732.0,0.0014]
[1773492467567,0.042396,70751.0,70738.0,0.042403]
[1773492467762,0.20065361,70750.0,70739.0,0.0014]
[1773492467964,0.042396,70751.0,70739.0,0.0014]
[1773492468162,0.20064897,70750.0,70739.0,0.0014]
[1773492468369,0.042396,70750.0,70739.0,0.0014]
[1773492469167,0.042396,70750.0,70739.0,0.01038]
[1773492472369,0.00898,70754.0,70739.0,0.01038]
[1773492472759,0.051374,70754.0,70742.0,0.0424]
[1773492473567,0.052374,70754.0,70742.0,0.0424]
[1773492474368,0.01098,70754.0,70740.0,0.07381522]
[1773492474573,0.01098,70754.0,70745.0,0.042398]
[1773492475075,0.01098,70754.0,70745.0,0.043798]
[1773492476171,0.01098,70754.0,70746.0,0.042398]
[1773492476367,0.00998,70754.0,70747.0,0.042397]
[1773492476572,0.00998,70754.0,70745.0,0.0014]
[1773492476772,0.00898,70754.0,70745.0,0.0014]
[1773492477673,0.00898,70754.0,70748.0,0.042397]
[1773492479881,0.04379,70761.0,70748.0,0.042397]
[1773492480674,0.04379,70761.0,70748.0,0.051377]
[1773492481078,0.05137,70760.0,70748.0,0.051377]
[1773492481559,0.05137,70760.0,70748.0,0.00898]
[1773492481560,0.00898,70760.0,70748.0,0.00898]
[1773492481766,0.00898,70760.0,70751.0,0.042395]
[1773492482075,0.00898,70760.0,70752.0,0.043794]
[1773492482460,0.00898,70760.0,70752.0,0.0014]
[1773492482664,0.01098,70760.0,70753.0,0.042394]
[1773492482865,0.12296401,70800.0,70758.0,0.042391]
[1773492482866,0.05010231,70772.0,70758.0,0.042391]
[1773492483066,0.042384,70771.0,70757.0,0.042392]
[1773492483265,0.042384,70770.0,70757.0,0.042392]
[1773492483466,0.001,70760.0,70757.0,0.042392]
[1773492483666,0.042385,70769.0,70757.0,0.042392]
[1773492483872,0.001,70760.0,70757.0,0.042392]
[1773492484072,0.042385,70769.0,70757.0,0.042392]
[1773492484272,0.042385,70769.0,70757.0,0.051372]
[1773492485769,0.043385,70769.0,70757.0,0.051372]
[1773492486069,0.043385,70769.0,70758.0,0.0014]
[1773492486274,0.042385,70769.0,70758.0,0.0014]
[1773492496881,0.00897,70776.0,70758.0,0.0014]
[1773492497077,0.05010231,70773.0,70758.0,0.043791]
[1773492497278,0.05010231,70773.0,70758.0,0.042391]
[1773492497578,0.09248631,70771.0,70759.0,0.04379]
[1773492497781,0.05010231,70771.0,70759.0,0.04239]
[1773492497983,0.05010231,70771.0,70760.0,0.0014]
[1773492498782,0.05010231,70771.0,70759.0,0.04239]
[1773492498982,0.05010231,70771.0,70760.0,0.04379]
[1773492499183,0.05010231,70771.0,70761.0,0.042389]
[1773492499375,0.05010231,70771.0,70762.0,0.0014]
[1773492500283,0.05010231,70771.0,70763.0,0.042388]
[1773492500585,0.042381,70775.0,70762.0,0.043788]
[1773492500781,0.042381,70775.0,70760.0,0.07381522]
[1773492500782,0.05010231,70772.0,70763.0,0.0014]
[1773492506390,0.05453578,70766.0,70761.0,0.0014]
[1773492506591,0.05453578,70766.0,70754.0,0.042393]
[1773492506784,0.05453578,70766.0,70755.0,0.0014]
[1773492507001,0.042385,70769.0,70755.0,0.043792]
[1773492507188,0.09692078,70769.0,70755.0,0.043792]
[1773492507485,0.09692078,70769.0,70756.0,0.042392]
[1773492513695,0.042385,70768.0,70756.0,0.042392]
[1773492514395,0.05453578,70766.0,70754.0,0.0014]
[1773492514597,0.05453578,70766.0,70754.0,0.043793]
[1773492514782,0.05453578,70766.0,70754.0,0.0014]
[1773492515996,0.05453578,70766.0,70754.0,0.043793]
[1773492516293,0.05453578,70766.0,70755.0,0.042393]
[1773492517001,0.00898,70768.0,70756.0,0.042392]
[1773492517804,0.00898,70768.0,70754.0,0.0014]
[1773492517805,0.00898,70768.0,70754.0,0.05539401]
[1773492517993,0.00898,70768.0,70757.0,0.042392]
[1773492523800,0.05453578,70776.0,70754.0,0.05539401]
[1773492524002,0.042377,70783.0,70762.0,0.042389]
[1773492524198,0.042377,70782.0,70764.0,0.05399401]
[1773492525103,0.09691678,70776.0,70764.0,0.042387]
[1773492525405,0.05453578,70776.0,70764.0,0.0014]
[1773492525600,0.07376538,70780.0,70764.0,0.0014]
[1773492525601,0.06350578,70774.0,70764.0,0.0014]
[1773492526003,0.06350578,70774.0,70762.0,0.0014]
[1773492526004,0.05453578,70773.0,70762.0,0.0014]
[1773492526204,0.05453578,70773.0,70759.0,0.04239]
[1773492526404,0.05453578,70773.0,70761.0,0.0014]
[1773492526901,0.09691778,70773.0,70764.0,0.00898]
[1773492535311,0.042382,70773.0,70764.0,0.00898]
[1773492535503,0.042381,70776.0,70764.0,0.00898]
[1773492537509,0.01037,70779.0,70764.0,0.00898]
[1773492537704,0.01037,70779.0,70764.0,0.051367]
[1773492537705,0.042381,70776.0,70764.0,0.051367]
[1773492537914,0.042381,70776.0,70764.0,0.00898]
[1773492538112,0.042381,70775.0,70764.0,0.00898]
[1773492538411,0.06526068,70779.0,70764.0,0.00898]
[1773492538907,0.042383,70772.0,70764.0,0.00898]
[1773492539513,0.05489068,70773.0,70764.0,0.00898]
[1773492540921,0.042381,70776.0,70764.0,0.00898]
[1773492541106,0.042381,70776.0,70764.0,0.051367]
[1773492541306,0.01037,70779.0,70765.0,0.042386]
[1773492541507,0.0014,70778.0,70765.0,0.042386]
[1773492542411,0.00897,70779.0,70765.0,0.042386]
[1773492542613,0.0014,70778.0,70765.0,0.042386]
[1773492542912,0.00897,70779.0,70765.0,0.042386]
[1773492543120,0.04238,70777.0,70765.0,0.042386]
[1773492549715,0.05489068,70774.0,70764.0,0.00898]
[1773492551112,0.042382,70773.0,70764.0,0.00898]
[1773492552409,0.09727268,70773.0,70764.0,0.00898]
[1773492553116,0.05489068,70773.0,70764.0,0.00898]
[1773492558022,0.042381,70776.0,70764.0,0.00898]
[1773492562426,0.042381,70775.0,70764.0,0.00898]
[1773492591852,0.042381,70776.0,70764.0,0.051367]
[1773492593056,0.042381,70776.0,70752.0,0.31772441]
[1773492593057,0.04792549,70776.0,70762.0,0.0014]
[1773492593258,0.04792549,70776.0,70761.0,0.0014]
[1773492593968,0.042383,70772.0,70761.0,0.0014]
[1773492611879,0.01037,70775.0,70761.0,0.0014]
[1773492612177,0.01037,70775.0,70764.0,0.042387]
[1773492612877,0.00897,70775.0,70764.0,0.042387]
[1773492621187,0.00897,70775.0,70765.0,0.04447122]
[1773492622283,0.0014,70778.0,70767.0,0.042385]
[1773492623782,0.0014,70778.0,70767.0,0.043785]
[1773492624483,0.0014,70778.0,70767.0,0.052755]
[1773492625885,0.042379,70779.0,70767.0,0.052755]
[1773492626384,0.0444844,70781.0,70767.0,0.052755]
[1773492626579,0.19970506,70780.0,70767.0,0.052755]
[1773492626779,0.19970506,70779.0,70767.0,0.052755]
[1773492626980,0.042378,70780.0,70767.0,0.052755]
[1773492627181,0.19970506,70779.0,70767.0,0.052755]
[1773492627382,0.042378,70780.0,70767.0,0.052755]
[1773492627683,0.19970461,70779.0,70767.0,0.052755]
[1773492627879,0.042378,70780.0,70767.0,0.052755]
[1773492628075,0.19970474,70779.0,70768.0,0.042385]
[1773492628281,0.0007064,70781.0,70770.0,0.07375166]
[1773492628485,0.19970403,70780.0,70770.0,0.07375166]
[1773492628783,0.0007064,70781.0,70770.0,0.07375166]
[1773492629483,0.0007064,70781.0,70771.0,0.042383]
[1773492630073,0.0007064,70781.0,70770.0,0.07375166]
[1773492630379,0.0007064,70781.0,70769.0,0.042384]
[1773492633087,0.0007064,70781.0,70770.0,0.042384]
[1773492636788,0.0007064,70781.0,70770.0,0.08685522]
[1773492649488,0.0007064,70781.0,70771.0,0.04637806]
[1773492650497,0.0007064,70781.0,70771.0,0.08876106]
[1773492652291,0.0007064,70781.0,70767.0,0.01037]
[1773492652292,0.19867181,70780.0,70773.0,0.0434007]
[1773492652493,0.0007064,70781.0,70773.0,0.0434007]
[1773492652689,0.00023286,70915.0,70773.0,0.0434007]
[1773492652690,0.042372,70791.0,70773.0,0.0434007]
[1773492652895,0.042373,70789.0,70777.0,0.0857797]
[1773492653304,0.042372,70791.0,70777.0,0.0857797]
[1773492653803,0.0014,70790.0,70778.0,0.0434007]
[1773492655093,0.001,70789.0,70778.0,0.0857797]
[1773492655806,0.0014,70790.0,70778.0,0.0857797]
[1773492656102,0.0024,70790.0,70778.0,0.0857797]
[1773492656408,0.001,70790.0,70778.0,0.0434007]
[1773492656608,0.042373,70789.0,70777.0,0.00897]
[1773492656796,0.043373,70789.0,70777.0,0.00897]
[1773492657192,0.043373,70789.0,70777.0,0.05135]
[1773492657497,0.001,70789.0,70778.0,0.042379]
[1773492658398,0.0024,70790.0,70778.0,0.042379]
[1773492659203,0.001,70789.0,70778.0,0.042379]
[1773492659998,0.0014,70790.0,70778.0,0.042379]
[1773492659999,0.0024,70790.0,70778.0,0.042379]
[1773492660801,0.0024,70790.0,70779.0,0.042378]
[1773492661501,0.0014,70790.0,70779.0,0.042378]
[1773492661705,0.001,70789.0,70777.0,0.051349]
[1773492662303,0.0014,70790.0,70777.0,0.051349]
[1773492662503,0.0024,70790.0,70777.0,0.051349]
[1773492663101,0.043773,70790.0,70777.0,0.051349]
[1773492663303,0.001,70789.0,70777.0,0.051349]
[1773492664307,0.001,70789.0,70778.0,0.042379]
[1773492664708,0.044773,70790.0,70778.0,0.042379]
[1773492665604,0.001,70789.0,70778.0,0.042379]
[1773492666806,0.044773,70790.0,70778.0,0.042379]
[1773492667511,0.0024,70790.0,70778.0,0.042379]
[1773492667809,0.0024,70790.0,70780.0,0.042378]
[1773492667810,0.0014,70789.0,70780.0,0.042378]
[1773492669506,0.042371,70792.0,70780.0,0.042378]
[1773492669811,0.0014,70791.0,70780.0,0.042378]
[1773492673012,0.0024,70791.0,70780.0,0.042378]
[1773492673913,0.044772,70791.0,70778.0,0.042379]
[1773492674218,0.044772,70791.0,70779.0,0.042378]
[1773492674912,0.043772,70791.0,70779.0,0.042378]
[1773492675110,0.044772,70791.0,70779.0,0.042378]
[1773492675313,0.0024,70791.0,70780.0,0.042378]
[1773492675703,0.0014,70791.0,70780.0,0.042378]
[1773492675901,0.0024,70791.0,70780.0,0.042378]
[1773492676513,0.0014,70791.0,70780.0,0.042378]
[1773492676715,0.0024,70791.0,70780.0,0.042378]
[1773492681517,0.0014,70790.0,70777.0,0.0523707]
[1773492683018,0.042371,70792.0,70781.0,0.04180956]
[1773492683322,0.0014,70791.0,70781.0,0.04180956]
[1773492685017,0.0014,70791.0,70771.0,0.00185121]
[1773492685018,0.04220296,70790.0,70771.0,0.00185121]
[1773492685313,0.042382,70774.0,70762.0,0.04180956]
[1773492686416,0.042384,70770.0,70757.0,0.042392]
[1773492686611,0.042384,70770.0,70760.0,0.00898]
[1773492686806,0.07513314,70770.0,70760.0,0.00898]
[1773492687112,0.07513314,70770.0,70753.0,0.042394]
[1773492687819,0.07513314,70770.0,70752.0,0.0014]
[1773492688420,0.042387,70765.0,70752.0,0.042394]
[1773492692020,0.0014,70764.0,70752.0,0.042394]
[1773492698028,0.0014,70764.0,70751.0,0.09318456]
[1773492698332,0.0014,70764.0,70753.0,0.04180956]
[1773492698928,0.0014,70764.0,70753.0,0.08420356]
[1773492700321,0.0014,70764.0,70751.0,0.00898]
[1773492700824,0.043788,70764.0,70751.0,0.00898]
[1773492701026,0.04360296,70764.0,70751.0,0.00898]
[1773492701331,0.04239,70760.0,70751.0,0.00898]
[1773492706024,0.042391,70759.0,70751.0,0.00898]
[1773492706224,0.0014,70758.0,70751.0,0.00898]
[1773492715040,0.043791,70758.0,70751.0,0.00898]
[1773492738960,0.0014,70758.0,70751.0,0.00898]
[1773492741155,0.20624074,70757.0,70751.0,0.00898]
[1773492741362,0.0014,70758.0,70751.0,0.00898]
[1773492741662,0.20624074,70757.0,70751.0,0.00898]
[1773492741969,0.0014,70758.0,70751.0,0.00898]
[1773492742156,0.20624074,70757.0,70751.0,0.00898]
[1773492742449,0.0014,70758.0,70751.0,0.00898]
[1773492742650,0.20625713,70757.0,70751.0,0.00898]
[1773492742862,0.0014,70758.0,70751.0,0.00898]
[1773492743059,0.20625713,70757.0,70751.0,0.00898]
[1773492743264,0.0014,70758.0,70751.0,0.00898]
[1773492743454,0.20628035,70757.0,70751.0,0.00898]
[1773492743650,0.0014,70758.0,70751.0,0.00898]
[1773492743852,0.20628035,70757.0,70744.0,0.01718656]
[1773492744150,0.20628035,70756.0,70747.0,0.042397]
[1773492744353,0.20628035,70755.0,70747.0,0.042397]
[1773492744559,0.0014,70758.0,70747.0,0.042397]
[1773492744865,0.20633262,70757.0,70747.0,0.042397]
[1773492745055,0.20633262,70756.0,70747.0,0.042397]
[1773492745256,0.20633262,70755.0,70747.0,0.042397]
[1773492745976,0.03946232,70754.0,70734.0,0.03060538]
[1773492746262,0.07377904,70750.0,70735.0,0.042404]
[1773492746467,0.25012962,70749.0,70735.0,0.042404]
[1773492746664,0.20633262,70748.0,70735.0,0.042404]
[1773492746970,0.20633262,70747.0,70735.0,0.042404]
[1773492747164,0.20633262,70746.0,70735.0,0.042404]
[1773492747365,0.0014,70749.0,70731.0,0.0007069]
[1773492747558,0.20140228,70748.0,70731.0,0.0007069]
[1773492747754,0.20140228,70747.0,70731.0,0.0007069]
[1773492748061,0.0014,70749.0,70731.0,0.03814187]
[1773492748375,0.2013478,70748.0,70731.0,0.03814187]
[1773492748668,0.0014,70749.0,70731.0,0.03814187]
[1773492748669,0.2013478,70747.0,70731.0,0.03814187]
[1773492748966,0.043797,70749.0,70734.0,0.042405]
[1773492749175,0.00898,70746.0,70734.0,0.042405]
[1773492754777,0.00898,70746.0,70735.0,0.042405]
[1773492757872,0.00898,70746.0,70736.0,0.042404]
[1773492758071,0.0014,70745.0,70736.0,0.042404]
[1773492758470,0.042391,70758.0,70736.0,0.03743497]
[1773492758673,0.27161188,70757.0,70745.0,0.03743497]
[1773492758980,0.22921988,70756.0,70745.0,0.03743497]
[1773492759178,0.22783357,70755.0,70745.0,0.03743497]
[1773492759476,0.0014,70756.0,70745.0,0.03743497]
[1773492759678,0.22768738,70755.0,70745.0,0.03743497]
[1773492759879,0.0014,70756.0,70745.0,0.03743497]
[1773492763073,0.042392,70757.0,70745.0,0.03743497]
[1773492763274,0.22912399,70756.0,70745.0,0.03743497]
[1773492763582,0.0014,70756.0,70745.0,0.03743497]
[1773492764179,0.0014,70756.0,70738.0,0.0014]
[1773492764180,0.03946232,70726.0,70707.0,0.03743497]
[1773492764478,0.042413,70722.0,70709.0,0.03743497]
[1773492764679,0.0014,70721.0,70709.0,0.03743497]
[1773492765074,0.00017526,70720.0,70709.0,0.03743497]
[1773492765577,0.04258926,70720.0,70709.0,0.03743497]
[1773492765778,0.04258926,70720.0,70705.0,0.03743497]
[1773492767089,0.04258926,70720.0,70706.0,0.03743497]
[1773492768781,0.05156926,70720.0,70706.0,0.03743497]
[1773492772094,0.042407,70732.0,70711.0,0.04064103]
[1773492772395,0.042407,70732.0,70719.0,0.04064103]
[1773492773091,0.042408,70731.0,70719.0,0.04064103]
[1773492774995,0.042409,70729.0,70719.0,0.04064103]
[1773492775793,0.0014,70730.0,70719.0,0.04064103]
[1773492780492,0.0014,70730.0,70719.0,0.08305503]
[1773492783493,0.042408,70731.0,70719.0,0.08305503]
[1773492783691,0.0014,70730.0,70719.0,0.08305503]
[1773492785093,0.04043866,70751.0,70723.0,0.04064103]
[1773492785293,0.23030145,70750.0,70723.0,0.04064103]
[1773492785492,0.042399,70745.0,70732.0,0.04064103]
[1773492785690,0.04043866,70755.0,70734.0,0.04064103]
[1773492785889,0.042399,70746.0,70734.0,0.04064103]
[1773492786087,0.0014,70747.0,70735.0,0.08304603]
[1773492786291,0.0014,70747.0,70736.0,0.04064103]
[1773492786690,0.0014,70747.0,70730.0,0.07381238]
[1773492786691,0.04043866,70759.0,70738.0,0.04064103]
[1773492786894,0.001,70750.0,70738.0,0.04064103]
[1773492787087,0.0014,70749.0,70738.0,0.04064103]
[1773492787291,0.042396,70750.0,70738.0,0.04064103]
[1773492787486,0.0014,70748.0,70738.0,0.04064103]
[1773492787683,0.042396,70750.0,70738.0,0.04064103]
[1773492787890,0.042396,70750.0,70734.0,0.0014]
[1773492787891,0.0014,70749.0,70735.0,0.04064103]
[1773492788290,0.001,70759.0,70741.0,0.04064103]
[1773492788490,0.21510508,70758.0,70741.0,0.04064103]
[1773492788689,0.21650508,70757.0,70741.0,0.04064103]
[1773492788891,0.21510508,70756.0,70741.0,0.04064103]
[1773492789092,0.0014,70757.0,70741.0,0.04064103]
[1773492789396,0.21467784,70756.0,70741.0,0.04064103]
[1773492789596,0.0014,70757.0,70741.0,0.04064103]
[1773492789894,0.21467804,70756.0,70741.0,0.04064103]
[1773492790091,0.21467804,70755.0,70741.0,0.04064103]
[1773492790290,0.0014,70754.0,70742.0,0.04064103]
[1773492790490,0.04043866,70767.0,70742.0,0.04064103]
[1773492790688,0.25653969,70766.0,70742.0,0.04064103]
[1773492790888,0.001,70757.0,70742.0,0.04064103]
[1773492791093,0.21610103,70756.0,70742.0,0.04064103]
[1773492791286,0.042394,70754.0,70742.0,0.04064103]
[1773492791792,0.0014,70753.0,70743.0,0.04064103]
[1773492792108,0.0014,70754.0,70743.0,0.04064103]